Cogmind - Beta 11.1 *** ADVENTURER MODE // 2022.11.28 @ 16:17:39 Player: TheDishwasher Result: Destroyed by as-06421 with Assembled Blade Performance ------------- Evolutions (1) 500 Regions Visited (5) 1000 Robots Destroyed (113) 565 Value Destroyed (2263) 2263 Prototype IDs (7) 140 Alien Tech Used (0) 0 Bonus (25) 25 TOTAL SCORE: 4493 Bonus ------- Follower Combat Kills 25 Cogmind --------- Core Integrity 0/400 Matter 214/300 Energy 92/100 System Corruption 3% Temperature Cool (0) Movement Walking (120) Location -9/Exiles Parts ------- > --- POWER (1) -------- (None) > --- PROPULSION (2) --- Carbon-fiber Leg > --- UTILITY (3) ------ Signal Interpreter Improved Light Armor Plating Hacking Suite > --- WEAPON (3) ------- (None) > --- INVENTORY (5) ---- Improved Heat Sink Structural Scanner Seismic Detector Peak State ------------ > --- POWER ------------ Heavy Ion Engine > --- PROPULSION ------- Armored Wheel Armored Wheel > --- UTILITY ---------- Signal Interpreter Improved Light Armor Plating Hacking Suite > --- WEAPON ----------- EM Pulse Cannon Proton Missile Launcher Makeshift Sword > --- INVENTORY -------- Carbon-fiber Leg Improved Heat Sink Structural Scanner Seismic Detector Heavy Rocket Launcher [Rating: 26] Favorites ----------- Power Light Angular Momentum Engine Engine Light Angular Momentum Engine Power Core Light Nuclear Core Propulsion Aluminum Leg Treads Light Treads Leg Aluminum Leg Wheel Armored Wheel Hover Unit Hover Unit Flight Unit Flight Unit Utility Seismic Detector Device Seismic Detector Storage Medium Matter Pod Processor Signal Interpreter Hackware Hacking Suite Protection Improved Light Armor Plating Weapon Light Assault Rifle Energy Gun Medium Laser Energy Cannon EM Pulse Cannon Ballistic Gun Light Assault Rifle Ballistic Cannon Light Cannon Launcher Rocket Launcher Special Weapon Mining Laser Slashing Weapon Makeshift Sword Build | -11 -10 -10 -9 -9 -9 ------- Run | Scr Mat Min Mat Min Exi Slots Evolved 2 | . . . 2 . . Power . | . . . . . . Propulsion . | . . . . . . Utility 1 | . . . 1 . . Weapon 1 | . . . 1 . . Parts Attached 118 | 17 30 14 43 10 4 Power 17 | 2 8 3 4 . . Engine 14 | 2 6 2 4 . . Core 3 | . 2 1 . . . Reactor . | . . . . . . Propulsion 33 | 7 8 5 10 2 1 Treads 4 | . . . 4 . . Leg 10 | 5 . 3 1 . 1 Wheel 11 | 2 2 2 3 2 . Hover 6 | . 6 . . . . Flight 2 | . . . 2 . . Utility 33 | 3 7 2 15 4 2 Device 27 | 3 7 2 11 3 1 Storage 1 | . . . 1 . . Processor 1 | . . . 1 . . Hackware 1 | . . . 1 . . Protection 3 | . . . 1 1 1 Artifact . | . . . . . . Weapon 35 | 5 7 4 14 4 1 Energy Gun 8 | 2 . 1 5 . . Energy Cannon 3 | . 1 . 2 . . Ballistic Gun 16 | 2 5 3 5 1 . Ballistic Cannon 1 | . . . 1 . . Launcher 4 | . . . 1 2 1 Special Weapon 2 | 1 1 . . . . Impact Weapon . | . . . . . . Slashing Weapon 1 | . . . . 1 . Piercing Weapon . | . . . . . . Special Melee Weapon . | . . . . . . Unidentified Prototypes 2 | . . . 2 . . Parts Lost 12 | . 1 1 2 1 7 Power 4 | . 1 1 1 . 1 Propulsion 3 | . . . 1 . 2 Utility . | . . . . . . Weapon 5 | . . . . 1 4 Highest Loss Streak 7 | . 1 1 1 1 7 To Critical Strikes . | . . . . . . Average Slot Usage (%) 98 | . 98 99 99 98 97 Engine 9 | . 8 6 10 11 10 Core 2 | . 4 6 . . . Treads 1 | . . . 3 . . Leg 6 | . 1 15 7 . . Wheel 13 | . 14 12 10 21 21 Hover 1 | . 11 . . . . Device 21 | . 28 28 20 7 11 Processor 5 | . . . 9 11 11 Hackware 3 | . . . 3 11 11 Energy Gun 8 | . 7 3 15 . . Energy Cannon 3 | . 6 2 3 9 . Ballistic Gun 13 | . 13 22 12 1 10 Ballistic Cannon 1 | . . . 1 4 . Launcher 2 | . . . . 10 10 Slashing Weapon 1 | . . . . 6 10 Naked Turns . | . . . . . . Heaviest Build 27 | 10 11 14 26 27 16 Greatest Support 46 | 20 20 26 46 24 24 Greatest Overweight (x) 6 | . 3 . 6 2 . Average Overweight (x) . | . . . . . . Largest Inventory Capacity 5 | 5 5 5 5 5 5 Average Capacity 5 | 5 5 5 5 5 5 Most Carried 5 | 5 5 5 5 5 5 Average Carried 4 | 4 4 4 4 4 4 Final Capacity 5 | 5 5 5 5 5 5 Final Carried 5 | 5 5 5 5 5 3 Class Distribution -------------------- 36% | Mutant 16% | Scavenger-Mutant 15% | Hacker-Mutant 13% | Scavenger-Skirmisher 8% | Skirmisher 5% | Hacker-Gunner 4% | Hacker-Skirmisher Dominant Class ---------------- Mutant | -10/Materials Scavenger-Mutant | -10/Mines Scavenger-Skirmisher | -9/Materials Hacker-Mutant | -9/Mines Hacker-Mutant | -9/Exiles Resources | -11 -10 -10 -9 -9 -9 ----------- Run | Scr Mat Min Mat Min Exi Matter Collected 2032 | 392 359 366 702 213 . Remotely . | . . . . . . Salvage Created 3825 | 156 896 865 1723 174 11 Parts 268 | 12 75 46 131 3 1 Haulers Intercepted 3 | . 1 . 2 . . Recyclers Shooed 5 | . 2 1 2 . . Parts Field Recycled . | . . . . . . Retrieved Matter . | . . . . . . Parts Self-Destructed . | . . . . . . Prevented . | . . . . . . Kills | -11 -10 -10 -9 -9 -9 ------- Run | Scr Mat Min Mat Min Exi Combat Hostiles Destroyed 75 | 1 16 10 36 10 2 Guns 47 | 1 10 10 26 . . Cannons 22 | . 6 . 8 8 . AOE 6 | . . . 2 2 2 Classes Destroyed 14 | 3 5 . 3 2 1 Worker 13 | 1 2 5 4 1 . Builder 6 | . 3 1 2 . . Tunneler 8 | 4 . 3 1 . . Hauler 3 | . 1 . 2 . . Recycler 8 | . 2 4 2 . . Operator 2 | . . . 2 . . Watcher 7 | . 3 . 4 . . Swarmer 20 | . 3 3 14 . . Grunt 33 | 1 13 7 11 1 . Brawler 1 | . . . 1 . . Sentry 10 | . . . 10 . . Demolisher 1 | . . . . 1 . Zionite 1 | . . . . . 1 Assembled 10 | . . . . 8 2 Best Kill Streak 7 | 1 7 6 6 7 2 Combat Bots Only 7 | 1 5 3 5 7 2 Max Kills in Single Turn 2 | 1 2 1 2 1 2 Gunslinging 1 | . . . 1 . . Exploded 2 | . . . 2 1 2 Melee . | . . . . . . Uniques/NPCs Destroyed . | . . . . . . Combat | -11 -10 -10 -9 -9 -9 -------- Run | Scr Mat Min Mat Min Exi Damage Taken 2618 | 17 394 408 866 298 635 Core 625 | 17 80 118 162 60 188 Absorbed by Shields . | . . . . . . Regen/Repaired (Parts) 61 | . 11 . 50 . . Core Remaining (%) 53 | 93 . 14 . . . Volleys Fired 275 | 25 69 77 83 18 3 Largest 3 | 2 2 2 3 2 1 Hottest 149 | 100 100 85 149 102 39 Shots Fired 609 | 47 132 154 236 35 5 Gun 506 | 44 113 140 208 . 1 Cannon 87 | . 16 14 26 31 . Launcher 10 | . . . 2 4 4 Special 6 | 3 3 . . . . Kinetic 337 | 22 66 126 108 14 1 Thermal 178 | 25 66 28 59 . . Explosive 9 | . . . 2 3 4 Electromagnetic 85 | . . . 67 18 . Robot Hit Streak 21 | 11 13 21 16 13 2 Robot Miss Streak 4 | 2 3 3 4 2 2 Penetration Max . | . . . . . . Secondary Targets 6 | . 2 1 3 . . Max Gunslinging Chain 1 | . 1 1 1 . . Shots Hit Robots 371 | 28 80 101 137 23 2 Core Hits 182 | 10 43 43 66 14 6 Critical Kills . | . . . . . . Critical Parts Destroyed 2 | . . 1 1 . . Critical Strikes 11 | 1 2 2 5 1 . Burn 6 | 1 2 1 2 . . Destroy 2 | . . 1 1 . . Corrupt 3 | . . . 2 1 . Melee Attacks 1 | . . . . 1 . Impact . | . . . . . . Slashing 1 | . . . . 1 . Piercing . | . . . . . . Sneak Attacks 1 | . . . . 1 . Combat Hostiles . | . . . . . . Follow-up Attacks . | . . . . . . Damage Inflicted 5855 | 286 967 1146 2511 598 347 Guns 3798 | 286 737 970 1805 . . Cannons 1188 | . 230 173 360 425 . Explosions 790 | . . . 346 97 347 Melee 67 | . . . . 67 . Ramming 12 | . . 3 . 9 . Kinetic 1996 | 111 306 807 652 120 . Thermal 2127 | 175 661 336 955 . . Explosive 470 | . . . 51 72 347 Electromagnetic 1183 | . . . 853 330 . Impact . | . . . . . . Slashing 67 | . . . . 67 . Piercing . | . . . . . . Highest Corruption 3 | . 1 1 3 3 3 Average Corruption 2 | . 1 1 3 3 3 Corruption Purged . | . . . . . . Corruption Blocked . | . . . . . . Effects 44 | . 1 9 12 11 11 Message Errors 14 | . . 5 2 5 2 Matter Fused 8 | . . 1 2 3 2 Heat Flow Errors 3 | . . 1 . 1 1 Energy Discharges 3 | . 1 . 1 . 1 Data Loss (minor) 9 | . . . 4 2 3 Data Loss (major) 2 | . . 1 1 . . Misfires 3 | . . . 1 . 2 Alerts 2 | . . 1 1 . . Overload Shots . | . . . . . . Overflow Damage 64 | . . 8 22 28 6 Projectiles 9 | . . 8 . 1 . Explosions 28 | . . . 22 . 6 Melee 27 | . . . . 27 . Knockbacks 3 | . . . . 3 . Impact . | . . . . . . Kinetic 3 | . . . . 3 . Secondary . | . . . . . . Self-Inflicted Damage 78 | . . . 74 4 . Shots 4 | . . . 4 . . Rammed 2 | . . 1 . 1 . Targets Rammed 3 | . . 2 . 1 . Kicked 1 | . . 1 . . . Crushed . | . . . . . . Highest Temperature 494 | 80 304 494 318 287 218 Average Temperature 90 | 21 78 91 102 108 119 Received Heat Transfer 932 | 12 249 288 357 26 . Effects 10 | . . 4 6 . . Shutdowns 1 | . . 1 . . . Energy Bleed 1 | . . 1 . . . Interference 6 | . . . 6 . . Damage (minor) 1 | . . 1 . . . Damage (major) 1 | . . 1 . . . Siege Activations . | . . . . . . Robots Corrupted . | . . . . . . Combat Hostiles . | . . . . . . Parts Fried 1 | . . . 1 . . Impact Corruptions . | . . . . . . Robots Melted . | . . . . . . Combat Hostiles . | . . . . . . Parts Melted 11 | 2 2 3 4 . . Heat Transferred 5245 | 592 1924 814 1915 . . Parts Sabotaged . | . . . . . . Parts Stolen . | . . . . . . Parts Stripped . | . . . . . . Power Chain Reactions 4 | . . . 4 . . Missiles Intercepted . | . . . . . . Alert | -11 -10 -10 -9 -9 -9 ------- Run | Scr Mat Min Mat Min Exi Peak Influence 370 | 25 330 170 370 175 . Initial 64 | . 8 44 24 64 . Average 127 | 8 170 101 209 83 . Maximum Alert Level 1 | . 1 . 1 . . Low Security (%) 74 | 100 58 100 43 100 . Level 1 25 | . 41 . 56 . . Level 2 . | . . . . . . Level 3 . | . . . . . . Level 4 . | . . . . . . Level 5 . | . . . . . . High Security . | . . . . . . Max Security . | . . . . . . Squads Dispatched 10 | . 4 1 4 1 . Investigation 7 | . 4 . 2 1 . Extermination . | . . . . . . Reinforcement 2 | . . . 2 . . Assault 1 | . . 1 . . . Garrison . | . . . . . . Intercept . | . . . . . . Searches Triggered . | . . . . . . Construction Impeded 1 | . . . 1 . . Haulers Reinforced . | . . . . . . Active Scanning Responses . | . . . . . . Cargo Convoy Interrupts . | . . . . . . Stealth | -11 -10 -10 -9 -9 -9 --------- Run | Scr Mat Min Mat Min Exi Distress Signals 4 | . 1 . 3 . . Communications Jammed . | . . . . . . Distress Signals . | . . . . . . Times Spotted 102 | 1 18 17 43 11 12 Peak Tracking Total 11 | 1 5 4 5 3 11 Tactical Retreats 6 | . . 3 . 1 2 Traps | -11 -10 -10 -9 -9 -9 ------- Run | Scr Mat Min Mat Min Exi Traps Triggered 6 | . 5 . 1 . . Indirectly . | . . . . . . Trap Hack Attempts . | . . . . . . Triggered . | . . . . . . Disarmed 12 | . 3 . 9 . . Reprogrammed 2 | . 1 . 1 . . Reused . | . . . . . . Traps Extracted . | . . . . . . Installed . | . . . . . . Triggered . | . . . . . . Machines | -11 -10 -10 -9 -9 -9 ---------- Run | Scr Mat Min Mat Min Exi Machines Disabled 6 | . 1 . 2 . 3 Max in Single Turn 2 | . 1 . 1 . 2 Machines Sabotaged . | . . . . . . Garrisons Compromised . | . . . . . . Overloaded Fab Kills . | . . . . . . Hacking | -11 -10 -10 -9 -9 -9 --------- Run | Scr Mat Min Mat Min Exi Machines Accessed 24 | . 9 . 13 1 1 Terminals 15 | . 6 . 9 . . Fabricators . | . . . . . . Repair Stations 2 | . 1 . 1 . . Recycling Units 3 | . 2 . 1 . . Scanalyzers 2 | . . . 2 . . Garrison Access . | . . . . . . Total Hacks 94 | . 36 . 50 1 7 Successful 76 | . 29 . 39 1 7 Failed 18 | . 7 . 11 . . Catastrophic . | . . . . . . Database Lockouts . | . . . . . . Manual . | . . . . . . Terminals 67 | . 29 . 38 . . Fabricators . | . . . . . . Repair Stations 8 | . 4 . 4 . . Recycling Units 4 | . 3 . 1 . . Scanalyzers 7 | . . . 7 . . Garrison Access . | . . . . . . Terminal Hacks 60 | . 24 . 28 1 7 Record 23 | . 7 . 9 . 7 Robot Analysis 1 | . 1 . . . . Prototype ID Bank 3 | . 2 . 1 . . Open Door 1 | . . . . 1 . Level Access Points 1 | . . . 1 . . Emergency Access Points 1 | . . . 1 . . Alert Level 3 | . 1 . 2 . . Unreport Threat 2 | . . . 2 . . Locate Traps 4 | . 2 . 2 . . Disarm Traps 4 | . 1 . 3 . . Reprogram Traps 2 | . 1 . 1 . . Dispatch Records 1 | . . . 1 . . Maintenance Status 3 | . 3 . . . . Surveillance Status 2 | . 1 . 1 . . Patrol Status 1 | . . . 1 . . Transport Status 2 | . 1 . 1 . . Reinforcement Status 1 | . 1 . . . . Recall Reinforcements 1 | . . . 1 . . Hauler Manifests 3 | . 2 . 1 . . Zone Layout 1 | . 1 . . . . Fabricator Hacks . | . . . . . . Repair Station Hacks 5 | . 2 . 3 . . Scan Component 2 | . 1 . 1 . . Repair 2 | . 1 . 1 . . Refit 1 | . . . 1 . . Recycling Unit Hacks 4 | . 3 . 1 . . Process 1 | . 1 . . . . Report Inventory 3 | . 2 . 1 . . Scanalyzer 7 | . . . 7 . . Insert Component 4 | . . . 4 . . Analyze 3 | . . . 3 . . Garrison Access Hacks . | . . . . . . Unauthorized Hacks . | . . . . . . Terminals . | . . . . . . Fabricators . | . . . . . . Repair Stations . | . . . . . . Recycling Units . | . . . . . . Scanalyzers . | . . . . . . Garrison Access . | . . . . . . Data Cores Recovered 1 | . . . 1 . . Used 1 | . . . 1 . . Hacking Detections 18 | . 5 . 13 . . Full Trace Events 8 | . 5 . 3 . . Feedback Events 1 | . 1 . . . . Corruption 1 | . 1 . . . . Feedback Blocked . | . . . . . . Robot Schematics Acquired . | . . . . . . Robots Built . | . . . . . . Authchips . | . . . . . . Time . | . . . . . . Total Robot Build Rating . | . . . . . . Part Schematics Acquired 3 | . . . 3 . . Parts Built . | . . . . . . Authchips . | . . . . . . Time . | . . . . . . Total Part Build Rating . | . . . . . . Parts Repaired 2 | . 1 . 1 . . Time 88 | . 38 . 50 . . Parts Recycled . | . . . . . . Recycled Matter . | . . . . . . Retrieved Matter . | . . . . . . Retrieved Components . | . . . . . . Parts Scanalyzed 3 | . . . 3 . . Part Schematics Acquired 3 | . . . 3 . . Parts Damaged . | . . . . . . Bothacking | -11 -10 -10 -9 -9 -9 ------------ Run | Scr Mat Min Mat Min Exi Used RIF Installer . | . . . . . . Robots Hacked . | . . . . . . Non-combat . | . . . . . . Combat . | . . . . . . Robot Hacks Applied . | . . . . . . Relay Couplers Released . | . . . . . . Fabnet Peak Effective % . | . . . . . . Robots Rewired . | . . . . . . Allies Hacked . | . . . . . . Hacks Repelled . | . . . . . . Allies | -11 -10 -10 -9 -9 -9 -------- Run | Scr Mat Min Mat Min Exi Total Allies 1 | . . 1 . . . Largest Group 1 | . . 1 . . . Highest-Rated Group 31 | . . 31 . . . Highest-Rated Ally 31 | . . 31 . . . Total Orders . | . . . . . . Ally Attacks 5 | . . 5 . . . Total Damage 63 | . . 63 . . . Kills 1 | . . 1 . . . Allies Corrupted . | . . . . . . Allies Melted . | . . . . . . Intel | -11 -10 -10 -9 -9 -9 ------- Run | Scr Mat Min Mat Min Exi Robot Analysis Total 1 | . 1 . . . . Derelict Logs Recovered 4 | . . 2 . 2 . Drone Launches . | . . . . . . Drone Recoveries . | . . . . . . Exploration | -11 -10 -10 -9 -9 -9 ------------- Run | Scr Mat Min Mat Min Exi Turns Passed 5886 | 1183 814 1033 1874 451 531 Spaces Moved 4533 | 675 718 759 1418 389 574 Core 37 | 28 7 . 2 . . Treads 152 | . . . 152 . . Legs 1449 | 647 34 356 400 . 12 Wheels 2659 | . 441 403 864 389 562 Hover 236 | . 236 . . . . Flight . | . . . . . . Fastest Speed 50 | 50 56 80 90 90 90 Average Speed 99 | 117 75 100 107 94 90 Slowest Speed 350 | 120 200 120 350 120 120 Overloaded Moves . | . . . . . . Propulsion Burnouts . | . . . . . . Robots Hopped . | . . . . . . Cave-ins Triggered . | . . . . . . Exploration Rate (%) 72 | 37 88 89 93 39 91 Regions Visited 5 Branch Regions 3 Pre-discovered Areas 2 | . . 2 . . . Known Exits Taken 2 | . . . 1 1 . Unknown Exits Taken 3 | 1 1 1 . . . Scrap Searched 1 | . . 1 . . . Spaces Dug 15 | 2 3 . . 10 . Terrain Destroyed 70 | 2 3 . 23 33 9 Melee . | . . . . . . Projectile 5 | 2 3 . . . . AOE 65 | . . . 23 33 9 Terrain Rammed . | . . . . . . Walls Destroyed . | . . . . . . Machines Disabled . | . . . . . . Actions | -11 -10 -10 -9 -9 -9 --------- Run | Scr Mat Min Mat Min Exi Total 5371 | 1014 860 891 1593 432 581 Wait 335 | 283 12 28 7 5 . Move 4528 | 674 717 758 1417 388 574 Hop . | . . . . . . Pick Up 41 | 13 12 1 11 4 . Fast Attach 34 | 1 10 5 15 3 . Attach 14 | 6 1 . 4 1 2 Detach 1 | . . . 1 . . Swap 70 | 10 19 9 24 6 2 Drop 69 | 2 20 11 31 5 . Fire 275 | 25 69 77 83 18 3 Melee 1 | . . . . 1 . Ram 2 | . . 1 . 1 . Kick 1 | . . 1 . . . Crush . | . . . . . . Escape Stasis . | . . . . . . Rewire . | . . . . . . Trap . | . . . . . . Miscellaneous . | . . . . . . Route ------- -11/Scrapyard -10/Materials (discovered 5 exits: *Mat x3 / [*Min x2]) -10/Mines (discovered 2 exits: *Mat x2) -9/Materials (discovered 4 exits: *Mat x3 / *Min) -9/Mines (discovered 2 exits: Mat / *Exi) -9/Exiles (discovered 2 exits: *Min x2) History --------- Turn | Location | Event 2 | -11/Scrapyard | Met Revision 17 112 | -11/Scrapyard | Discovered new exit (range 8) 1184 | -11/Scrapyard | Entered Materials 1185 | -10/Materials | Build established: Mutant 1402 | -10/Materials | Discovered new exit (range 6) 1519 | -10/Materials | Discovered new exit (range 14) 1818 | -10/Materials | Discovered new exit (range 13) 1821 | -10/Materials | Discovered new exit (range 13) 1864 | -10/Materials | Repaired Lgt. Nuclear Core? 1940 | -10/Materials | Discovered new exit (range 5) 1998 | -10/Materials | Entered Mines 2000 | -10/Mines | Joined a pair of Derelicts in attacking an 0b10 outpost 2071 | -10/Mines | Learned location of Zion (-7) 2303 | -10/Mines | Discovered new exit (range 9) 2334 | -10/Mines | Learned location of Storage (-7) 2400 | -10/Mines | Core integrity fell below 50% 2481 | -10/Mines | Build established: Scavenger-Mutant 2549 | -10/Mines | Discovered new exit (range 8) 2823 | -10/Mines | Met a Derelict testing a Signal Generator 2907 | -10/Mines | Core integrity fell below 20% 3031 | -10/Mines | Entered Materials 3031 | -9/Materials | Evolved 2 slots: Utility x1, Weapon x1 3320 | -9/Materials | Repaired Lgt. Angular Momentum Engine 3342 | -9/Materials | Build established: Scavenger-Skirmisher 3548 | -9/Materials | Discovered new exit (range 14) 3556 | -9/Materials | Identified exit to Materials 4126 | -9/Materials | Build established: Skirmisher 4872 | -9/Materials | Discovered new exit (range 15) 4886 | -9/Materials | Identified exit to Mines 4905 | -9/Materials | Entered Mines 4906 | -9/Mines | Assembled infested the area 4907 | -9/Mines | Met a Derelict shopkeep closing up shop 5034 | -9/Mines | Destroyed 7 combat bots 5035 | -9/Mines | Core integrity fell below 50% 5075 | -9/Mines | Learned Materials non-interactive machine intel 5090 | -9/Mines | A weapon hastily lodged in a ceiling crevice suddenly fell to the ground 5100 | -9/Mines | Received a Rocket Launcher from a helpful Derelict 5129 | -9/Mines | Deemed a non-threat by the Exiles lab entrance 5130 | -9/Mines | Discovered new exit (range 5) 5259 | -9/Mines | Build established: Hacker-Mutant 5355 | -9/Mines | Identified exit to Exiles 5356 | -9/Mines | Entered Exiles 5371 | -9/Exiles | Discovered new exit (range 14) 5382 | -9/Exiles | Identified exit to Mines 5401 | -9/Exiles | Met 8R-AWN 5421 | -9/Exiles | Met EX-HEX 5465 | -9/Exiles | Met EX-DEC 5528 | -9/Exiles | Discovered exit to Mines (range 12) 5591 | -9/Exiles | Visited The Gauntlet 5731 | -9/Exiles | Met EX-BIN 5850 | -9/Exiles | Attacked by the Exiles 5868 | -9/Exiles | Core integrity fell below 20% 5887 | -9/Exiles | Destroyed by as-06421 with Assembled Blade Last Messages --------------- [Achievement: Maybe Next Time I'll Detach My Launcher] Important note for Steam players: Cogmind player global achievement rates displayed by Steam are all significantly underreported, in some cases by a huge margin, due to how they are calculated by Valve. EXILES: Hostile robot within lab perimeter. Defensive protocols time, folks! MS-AHD(z) destroyed. Hvy. Ion Engine destroyed. Lgt. Assault Rifle destroyed. Rocket Launcher destroyed. Arm. Wheel destroyed. EX-BIN: "I just want to science!" Mak. Sword destroyed. Knocked back. Destroyed Asb. Blade. Machine disabled. as-88483 destroyed. Hvy. Rocket Launcher destroyed. Arm. Wheel destroyed. [Achievement: First Step to Greatness] Map ----- +----------------------------------------------------+ | #????????????????????????????????????????##"""" # | | ##??????????????????????????????????????##""X" | | #??????????????????????????????????????##" | | #??????????????????????????????????????##" # | | ##?????????????????????????????????????##""""""# | | ?????????????????????????????????????###"##### | | #????????????????????????????????????? "##### | | #?????????????????????????????????????""" ???## | | ##????????????????????????????????????""" ???## | | #????????????#######??????????????????"" #??## | | #######??????#!!! "#??????????????????####??## | | #""##?????# "#??????????????????####??## | | #?????# "#??????????#########?????## | | #" ##???## ""#?????????##########?????## | | "" #####" ""#?????????## """##?????## | | ### ##" ""#?????????##"" """##?????## | | ??## #"" #???????????##"" ##?????## | | ???#"## #???????????##"" ##??????# | | ???####### ##??????????##"" "##??????# | | ?????????### "###????????## ""##?????## | | ??????????#" ####???????##"" ""##????### | | ????????"""" ########?#### ########### | | ????! "###"" ############ ##########" | | ????! "####" """#####X# #"# #"""""" | | ???#! ##?##" "" "" " " | | ???? !""""""###??##"# @ a %"" " | | ???#?#######??????#### aa % % | | ????????????????????#### a % | | ????????????????????###### = | | ??????????????????????##### % % | | ????????????????????????#### % | | ?????????????????????????####" | | ??????????????????????????###""" "" | | ???????????????????????????##" ## | | ???????????????????????????#"" #### | | ??????????????????????????##""" ####? | | ??????????????????????????#""" ###?? | | ??????????????????????????#""" ##??? | | ??????????????????????????#"" ####### | | ??????????????????????????#""" ## | | ??????????????????????????#"" | | ??????????????????????????##"" | | ???????????????????????????#"""" | | ???????????????????????????## | | ????????????????????????????#" " | | ????????????????????????????#"""" "" | | ????????????????????????????#"" ""## | | ????????????????????????????#" """"##? | | ????????????????????????????#""" """#?? | | ????????????????????????????## ""##?? | +----------------------------------------------------+ Best States ------------- Heat Dissipation 42 Energy Generation 18 Energy Capacity 280 Matter Stores 300 Matter Capacity 300 Sight Range 16 Terrain Scan Range 16 Terrain Scan Density 10 Armor Coverage 150 Resistance: KI 20 Resistance: TH 20 Resistance: EX 20 Resistance: EM 20 Resistance: I 20 Resistance: S 20 Resistance: P 20 Evasion (%) 55 Recoil Reduction 2 Offensive Hacking 20 Item Schematics ----------------- Arm. Wheel | -9/Materials | Scanalyzed Grenade Launcher | -9/Materials | Scanalyzed Imp. Light Armor Plating | -9/Materials | Scanalyzed Robot Schematics ------------------ None Fabricated ------------ Nothing Alien Tech Used ----------------- None Achievements -------------- Crack Shot Dynamic Key Everything Is Under Control First Step to Greatness Hey, That's Mine! I Survived The Infestation Librarian Loot Pinata Maybe Next Time I'll Detach My Launcher Novice Programmer One Hack Too Far Part-time Mechanic Risk Taker Shopping List Tourist Uninvited Guest Challenges ------------ None Game ------ Seed HoverMakeshiftNanosword Manual? 0 Play Time 02:25:47 Cumulative 4.8 hours Start 2022.11.28 @ 13:37:12 End 2022.11.28 @ 16:17:39 Sessions 1 Manual Loads 0 Difficulty Adventurer Special Mode None Game No. 1 Rogue 0 Adventurer 1 Explorer 0 Win Type - Total 0 Types 0/0/0/0/0/0/0/0/0 Lore% 4 Gallery% 4 Achievement% 6 Wizard Run 0 Options --------- ASCII 0 Keyboard 0 Movement Arrows Keybinds 0 Fullscreen 2 Font 18/X11 Map View 76x50 Tactical HUD 0 Map Filters NONE Filters NONE Steam 1 RUN: bf9238af-79d9-424f-ba06-0669454658ab